fUST/lending_fUST_20250210
["ID","MTS","AMOUNT","RATE_DAILY","PERIOD"]
[352491097,1739137700505,-500.0,0.0001178,2]
[352491098,1739137700532,-500.0,0.0001178,2]
[352491099,1739137700559,-500.0,0.0001178,2]
[352491100,1739137700584,-462.29276579,0.0001178,2]
[352491101,1739137700609,-689.15,0.0001178,2]
[352491102,1739137700635,-500.0,0.0001178,2]
[352491103,1739137700660,-500.0,0.0001178,2]
[352491104,1739137700684,-500.0,0.0001178,2]
[352491105,1739137700709,-500.0,0.0001178,2]
[352491106,1739137700734,-528.07,0.0001178,2]
[352491107,1739137700761,-500.0,0.0001178,2]
[352491108,1739137700786,-500.0,0.0001178,2]
[352491109,1739137700811,-1316.1,0.0001178,2]
[352491110,1739137700836,-533.35,0.0001178,2]
[352491111,1739137700861,-400.44016005,0.0001178,2]
[352491112,1739137700887,-500.0,0.0001178,2]
[352491113,1739137700912,-500.0,0.0001178,2]
[352491114,1739137700939,-500.0,0.0001178,2]
[352491115,1739137700966,-500.0,0.0001178,2]
[352491116,1739137700991,-500.0,0.0001178,2]
[352491117,1739137701016,-1927.7,0.0001178,2]
[352491118,1739137701044,-500.0,0.0001178,2]
[352491119,1739137701069,-7284.82,0.0001178,2]
[352491120,1739137701095,-500.0,0.0001178,2]
[352491121,1739137701122,-500.0,0.0001178,2]
[352491122,1739137701148,-500.0,0.0001178,2]
[352491123,1739137701172,-500.0,0.0001178,2]
[352491124,1739137701196,-847.12,0.0001178,2]
[352491125,1739137701222,-500.0,0.0001178,2]
[352491126,1739137701247,-1000.0,0.00011821,2]
[352491127,1739137701269,-1000.0,0.00011821,2]
[352491128,1739137701292,-1000.0,0.00011821,2]
[352491129,1739137701315,-500.0,0.00011821,2]
[352491130,1739137701339,-250.56291899,0.00011821,2]
[352491131,1739137701362,-1000.0,0.00011821,2]
[352491132,1739137701392,-5071.55202423,0.00011822,2]
[352491133,1739137701416,-500.0,0.00011917,2]
[352491134,1739137701441,-500.0,0.00011917,2]
[352491135,1739137701464,-500.0,0.00011917,2]
[352491136,1739137701488,-788.15208376,0.00011917,2]
[352491137,1739137701513,-266.03754597,0.00011917,2]
[352491138,1739137701536,-500.0,0.00011917,2]
[352491139,1739137701561,-201.13535798,0.00011917,2]
[352491140,1739137701587,-500.0,0.00011917,2]
[352491141,1739137701612,-500.0,0.00011917,2]
[352491142,1739137701642,-2500.0,0.00011917,2]
[352491143,1739137701665,-500.0,0.00011917,2]
[352491144,1739137701688,-500.0,0.00011917,2]
[352491145,1739137701711,-500.0,0.00011917,2]
[352491146,1739137701734,-500.0,0.00011917,2]
[352491147,1739137701758,-500.0,0.00011917,2]
[352491148,1739137701780,-500.0,0.00011917,2]
[352491149,1739137701804,-500.0,0.00011917,2]
[352491150,1739137701826,-500.0,0.00011917,2]
[352491151,1739137701853,-500.0,0.00011917,2]
[352491152,1739137701876,-814.37919291,0.00011917,2]
[352491153,1739137701899,-500.0,0.00011917,2]
[352491154,1739137701921,-500.0,0.00011917,2]
[352491155,1739137701944,-500.0,0.00011917,2]
[352491156,1739137701967,-500.0,0.00011917,2]
[352491157,1739137701989,-500.0,0.00011917,2]
[352491158,1739137702012,-500.0,0.00011917,2]
[352491159,1739137702036,-584.4,0.00011917,2]
[352491160,1739137702062,-500.0,0.00011917,2]
[352491161,1739137702085,-500.0,0.00011917,2]
[352491162,1739137702107,-500.0,0.00011917,2]
[352491163,1739137702130,-500.0,0.00011917,2]
[352491164,1739137702156,-549.22729248,0.00011917,2]
[352491165,1739137702179,-728.01,0.00011917,2]
[352491166,1739137702202,-500.0,0.00011917,2]
[352491167,1739137702226,-500.0,0.00011917,2]
[352491168,1739137702250,-500.0,0.00011917,2]
[352491169,1739137702273,-500.0,0.00011917,2]
[352491170,1739137702295,-500.0,0.00011917,2]
[352491171,1739137702318,-500.0,0.00011917,2]
[352491172,1739137702341,-500.0,0.00011917,2]
[352491173,1739137702363,-690.12,0.00011917,2]
[352491174,1739137702388,-597.13,0.00011917,2]
[352491175,1739137702411,-500.0,0.00011917,2]
[352491176,1739137702434,-500.0,0.00011917,2]
[352491177,1739137702458,-500.0,0.00011917,2]
[352491178,1739137702481,-500.0,0.00011917,2]
[352491179,1739137702505,-500.0,0.00011917,2]
[352491180,1739137702531,-753.97,0.00011917,2]
[352491181,1739137702555,-500.0,0.00011917,2]
[352491182,1739137702578,-511.53,0.00011917,2]
[352491183,1739137702601,-504.80449704,0.00011917,2]
[352491184,1739137702625,-379.85811021,0.00011917,2]
[352491185,1739137702649,-500.0,0.00011917,2]
[352491186,1739137702673,-500.0,0.00011917,2]
[352491187,1739137702697,-502.63099156,0.00011917,2]
[352491188,1739137702726,-500.0,0.00011917,2]
[352491189,1739137702748,-500.0,0.00011917,2]
[352491190,1739137702771,-504.95706231,0.00011917,2]
[352491191,1739137702794,-500.0,0.00011917,2]
[352491192,1739137702816,-1517.82,0.00011917,2]
[352491193,1739137702839,-500.0,0.00011917,2]
[352491194,1739137702862,-593.37,0.00011917,2]
[352491195,1739137702886,-500.0,0.00011917,2]
[352491196,1739137702910,-500.0,0.00011917,2]
[352491197,1739137702935,-500.0,0.00011917,2]
[352491198,1739137703074,-500.0,0.00011917,2]
[352491199,1739137703101,-500.0,0.00011917,2]
[352491200,1739137703132,-500.0,0.00011917,2]
[352491201,1739137703157,-500.0,0.00011917,2]
[352491202,1739137703187,-500.0,0.00011917,2]
[352491203,1739137703213,-500.0,0.00011917,2]
[352491204,1739137703240,-303.88022451,0.00011917,2]
[352491205,1739137703265,-504.9048352,0.00011917,2]
[352491206,1739137703289,-500.0,0.00011917,2]
[352491207,1739137703312,-500.0,0.00011917,2]
[352491208,1739137703337,-500.0,0.00011917,2]
[352491209,1739137703361,-500.0,0.00011917,2]
[352491210,1739137703390,-500.0,0.00011917,2]
[352491211,1739137703413,-512.36541676,0.00011917,2]
[352491212,1739137703438,-562.55,0.00011917,2]
[352491213,1739137703462,-500.0,0.00011917,2]
[352491214,1739137703488,-500.0,0.00011917,2]
[352491215,1739137703512,-500.0,0.00011917,2]
[352491216,1739137703538,-500.0,0.00011917,2]
[352491217,1739137703563,-500.0,0.00011917,2]
[352491218,1739137703588,-411.07,0.00011917,2]
[352491219,1739137703612,-500.0,0.00011917,2]
[352491220,1739137703641,-500.0,0.00011917,2]
[352491221,1739137703666,-504.98126895,0.00011917,2]
[352491222,1739137703689,-500.0,0.00011917,2]
[352491223,1739137703714,-500.0,0.00011917,2]
[352491224,1739137703738,-533.96367786,0.00011917,2]
[352491225,1739137703765,-500.0,0.00011917,2]
[352491226,1739137703790,-500.0,0.00011917,2]
[352491227,1739137703815,-500.0,0.00011917,2]
[352491228,1739137703840,-738.43,0.00011917,2]
[352491229,1739137703864,-500.0,0.00011917,2]
[352491230,1739137703896,-500.0,0.00011917,2]
[352491231,1739137703921,-517.69,0.00011917,2]
[352491232,1739137703945,-500.0,0.00011917,2]
[352491233,1739137703970,-500.0,0.00011917,2]
[352491234,1739137703993,-500.0,0.00011917,2]
[352491235,1739137704016,-500.0,0.00011917,2]
[352491236,1739137704044,-500.0,0.00011917,2]
[352491237,1739137704070,-484.20893084,0.00011917,2]
[352491238,1739137704095,-524.5,0.00011917,2]
[352491239,1739137704129,-1290.86,0.00011917,2]
[352491240,1739137704155,-597.3,0.00011917,2]
[352491241,1739137704180,-500.0,0.00011917,2]
[352491242,1739137704205,-500.0,0.00011917,2]
[352491243,1739137704229,-503.93,0.00011917,2]
[352491244,1739137704254,-500.0,0.00011917,2]
[352491245,1739137704279,-707.63,0.00011917,2]
[352491246,1739137704302,-500.0,0.00011917,2]
[352491247,1739137704326,-500.0,0.00011917,2]
[352491248,1739137704349,-500.0,0.00011917,2]
[352491249,1739137704376,-1103.48,0.00011917,2]
[352491250,1739137704401,-500.0,0.00011917,2]
[352491251,1739137704425,-876.18,0.00011917,2]
[352491252,1739137704448,-724.02,0.00011917,2]
[352491253,1739137704473,-488.44612216,0.00011917,2]
[352491254,1739137704497,-500.0,0.00011917,2]
[352491255,1739137704522,-190.96803487,0.00011917,2]
[352491256,1739137704549,-500.0,0.00011917,2]
[352491257,1739137704573,-500.0,0.00011917,2]
[352491258,1739137704599,-500.0,0.00011917,2]
[352491259,1739137704625,-824.2,0.00011917,2]
[352491260,1739137704650,-264.26,0.00011917,2]
[352491261,1739137704675,-500.0,0.00011917,2]
[352491262,1739137704699,-824.85,0.00011917,2]
[352491263,1739137704723,-500.0,0.00011917,2]
[352491264,1739137704746,-633.47,0.00011917,2]
[352491265,1739137704771,-660.79,0.00011917,2]
[352491266,1739137704794,-500.0,0.00011917,2]
[352491267,1739137704817,-500.0,0.00011917,2]
[352491268,1739137704841,-1548.94,0.00011917,2]
[352491269,1739137704866,-500.0,0.00011917,2]
[352491270,1739137704892,-1526.67,0.00011917,2]
[352491271,1739137704916,-1271.62,0.00011917,2]
[352491272,1739137704940,-1037.54,0.00011917,2]
[352491273,1739137704965,-1491.1,0.00011917,2]
[352491274,1739137704990,-500.0,0.00011917,2]
[352491275,1739137705012,-500.0,0.00011917,2]
[352491276,1739137705036,-500.0,0.00011917,2]
[352491277,1739137705061,-542.98376027,0.00011917,2]
[352491278,1739137705086,-500.0,0.00011917,2]
[352491279,1739137705112,-634.96,0.00011917,2]
[352491280,1739137705142,-500.0,0.00011917,2]
[352491281,1739137705169,-500.0,0.00011917,2]
[352491282,1739137705197,-500.0,0.00011917,2]
[352491283,1739137705224,-774.85,0.00011917,2]
[352491284,1739137705252,-500.0,0.00011917,2]
[352491285,1739137705278,-373.05024037,0.00011917,2]
[352491286,1739137705305,-500.0,0.00011917,2]
[352491287,1739137705330,-500.0,0.00011917,2]
[352491288,1739137705359,-500.0,0.00011917,2]
[352491289,1739137705393,-500.0,0.00011917,2]
[352491290,1739137705421,-500.0,0.00011917,2]
[352491291,1739137705448,-3803.23,0.00011917,2]
[352491292,1739137705476,-12348.21,0.00011917,2]
[352491293,1739137705502,-1332.36,0.00011917,2]
[352491294,1739137705529,-500.0,0.00011917,2]
[352491295,1739137705556,-784.54,0.00011917,2]
[352491296,1739137705584,-780.43,0.00011917,2]
[352491297,1739137705610,-884.06,0.00011917,2]
[352491298,1739137705643,-527.89876028,0.00011917,2]
[352491299,1739137705671,-4972.21,0.00011917,2]
[352491300,1739137705698,-13494.58419946,0.00011917,2]
[352491301,1739137706187,-3079.07580054,0.00011917,2]
[352491302,1739137706211,-1933.38,0.00011917,2]
[352491303,1739137706234,-500.0,0.00011917,2]
[352491304,1739137706256,-1472.41,0.00011917,2]
[352491305,1739137706280,-500.0,0.00011917,2]
[352491306,1739137706303,-2624.27,0.00011917,2]
[352491307,1739137706327,-770.2,0.00011917,2]
[352491308,1739137706352,-609.23,0.00011917,2]
[352491309,1739137706379,-500.0,0.00011917,2]
[352491310,1739137706403,-500.0,0.00011917,2]
[352491311,1739137706426,-1263.38,0.00011917,2]
[352491312,1739137706448,-888.73,0.00011917,2]
[352491313,1739137706471,-5020.2,0.00011917,2]
[352491314,1739137706493,-500.0,0.00011917,2]
[352491315,1739137706516,-500.0,0.00011917,2]
[352491316,1739137706539,-573.73,0.00011917,2]
[352491317,1739137706561,-500.0,0.00011917,2]
[352491318,1739137706585,-500.0,0.00011917,2]
[352491319,1739137706608,-500.0,0.00011917,2]
[352491320,1739137706633,-405.90916124,0.00011917,2]
[352491321,1739137706657,-500.0,0.00011917,2]
[352491322,1739137706681,-500.0,0.00011917,2]
[352491323,1739137706704,-500.0,0.00011917,2]
[352491324,1739137706729,-500.0,0.00011917,2]
[352491325,1739137706752,-500.0,0.00011917,2]
[352491326,1739137706774,-500.0,0.00011917,2]
[352491327,1739137706798,-1325.08,0.00011917,2]
[352491328,1739137706821,-703.17,0.00011917,2]
[352491329,1739137706843,-504.56737387,0.00011917,2]
[352491330,1739137706868,-1380.66,0.00011917,2]
[352491331,1739137706891,-500.0,0.00011917,2]
[352491332,1739137706912,-5323.23,0.00011917,2]
[352491333,1739137706934,-788.28,0.00011917,2]
[352491334,1739137706955,-500.0,0.00011917,2]
[352491335,1739137706976,-500.0,0.00011917,2]
[352491336,1739137706997,-500.0,0.00011917,2]
[352491337,1739137707017,-567.03,0.00011917,2]
[352491338,1739137707039,-500.0,0.00011917,2]
[352491339,1739137707063,-4069.2,0.00011917,2]
[352491340,1739137707086,-500.0,0.00011917,2]
[352491341,1739137707107,-500.0,0.00011917,2]
[352491342,1739137707130,-500.0,0.00011917,2]
[352491343,1739137707154,-500.0,0.00011917,2]
[352491344,1739137707175,-500.0,0.00011917,2]
[352491345,1739137707196,-1757.29,0.00011917,2]
[352491346,1739137707221,-5792.99,0.00011917,2]
[352491347,1739137707243,-500.0,0.00011917,2]
[352491348,1739137707266,-500.0,0.00011917,2]
[352491349,1739137707289,-5298.98,0.00011917,2]
[352491350,1739137707312,-3887.37,0.00011917,2]
[352491351,1739137707335,-500.0,0.00011917,2]
[352491352,1739137707357,-3596.48,0.00011917,2]
[352491353,1739137707384,-596.87,0.00011917,2]
[352491354,1739137707406,-500.0,0.00011917,2]
[352491355,1739137707428,-1325.79,0.00011917,2]
[352491356,1739137707452,-1653.36,0.00011917,2]
[352491357,1739137707473,-500.0,0.00011917,2]
[352491358,1739137707494,-500.0,0.00011917,2]
[352491359,1739137707516,-2574.6,0.00011917,2]
[352491360,1739137707538,-1144.56,0.00011917,2]
[352491361,1739137707561,-651.24,0.00011917,2]
[352491362,1739137707584,-500.0,0.00011917,2]
[352491363,1739137707605,-500.0,0.00011917,2]
[352491364,1739137707629,-2291.27,0.00011917,2]
[352491365,1739137707652,-768.91,0.00011917,2]
[352491366,1739137707673,-500.0,0.00011917,2]
[352491367,1739137707694,-585.69355321,0.00011917,2]
[352491368,1739137707716,-579.86,0.00011917,2]
[352491369,1739137707737,-500.0,0.00011917,2]
[352491370,1739137707760,-1622.99,0.00011917,2]
[352491371,1739137707782,-1342.76,0.00011917,2]
[352491372,1739137707803,-2081.57,0.00011917,2]
[352491373,1739137707826,-500.0,0.00011917,2]
[352491374,1739137707955,-500.0,0.00011917,2]
[352491375,1739137707977,-500.0,0.00011917,2]
[352491376,1739137707999,-500.0,0.00011917,2]
[352491377,1739137708022,-500.0,0.00011917,2]
[352491378,1739137708044,-689.15,0.00011917,2]
[352491379,1739137708068,-500.0,0.00011917,2]
[352491380,1739137708091,-500.0,0.00011917,2]
[352491381,1739137708114,-500.0,0.00011917,2]
[352491382,1739137708139,-500.0,0.00011917,2]
[352491383,1739137708163,-528.07,0.00011917,2]
[352491384,1739137708185,-644.37048124,0.00011917,2]
[352491385,1739137708208,-500.0,0.00011917,2]
[352491386,1739137708234,-1316.1,0.00011917,2]
[352491387,1739137708257,-533.35,0.00011917,2]
[352491388,1739137708280,-500.0,0.00011917,2]
[352491389,1739137708302,-500.0,0.00011917,2]
[352491390,1739137708326,-500.0,0.00011917,2]
[352491391,1739137708349,-500.0,0.00011917,2]
[352491392,1739137708377,-500.0,0.00011917,2]
[352491393,1739137708402,-1927.7,0.00011917,2]
[352491394,1739137708425,-500.0,0.00011917,2]
[352491395,1739137708450,-7284.82,0.00011917,2]
[352491396,1739137708474,-500.0,0.00011917,2]
[352491397,1739137708499,-500.0,0.00011917,2]
[352491398,1739137708523,-503.50750254,0.00011917,2]
[352491399,1739137708546,-500.0,0.00011917,2]
[352491400,1739137708569,-847.12,0.00011917,2]
[352491401,1739137708592,-500.0,0.00011917,2]
[352491402,1739137708615,-11628.77492636,0.00011933,2]
[352491403,1739137708800,-5000.0,0.00010984,2]
[352491404,1739137708822,-12990.14334595,0.0001131,2]
[352491405,1739137708843,-3086.03142705,0.00011933,2]
[352491815,1739137840046,-439.24673477,0.00010068,2]
[352491820,1739137840063,-660.75326523,0.00010068,2]
[352491822,1739137840073,-5000.0,0.00010848,2]
[352491824,1739137840086,-300.0,0.00010957,2]
[352491827,1739137840096,-504.16833063,0.00010958,2]
[352491830,1739137840106,-954.01,0.00010958,2]
[352491833,1739137840116,-505.62361308,0.00010958,2]
[352491836,1739137840131,-500.0,0.00010958,2]
[352491839,1739137840141,-511.68145535,0.00010958,2]
[352491842,1739137840151,-500.0,0.00010958,2]
[352491845,1739137840161,-500.0,0.00010958,2]
[352491848,1739137840172,-2180.19,0.00010958,2]
[352491851,1739137840182,-500.0,0.00010958,2]
[352491854,1739137840192,-500.0,0.00010958,2]
[352491858,1739137840205,-500.0,0.00010958,2]
[352491861,1739137840216,-842.26,0.00010958,2]
[352491864,1739137840226,-500.0,0.00010958,2]
[352491867,1739137840236,-502.09211218,0.00010958,2]
[352491872,1739137840246,-500.0,0.00010958,2]
[352491876,1739137840256,-500.0,0.00010958,2]
[352491879,1739137840272,-883.86,0.00010958,2]
[352491882,1739137840282,-500.0,0.00010958,2]
[352491884,1739137840293,-500.0,0.00010958,2]
[352491886,1739137840304,-500.0,0.00010958,2]
[352491889,1739137840314,-216.950327,0.00010958,2]
[352491890,1739137840323,-500.0,0.00010958,2]
[352491892,1739137840333,-18823.84266258,0.00010958,2]
[352491895,1739137840345,-25111.17733742,0.00010958,2]
[352491897,1739137840355,-500.0,0.00010958,2]
[352491899,1739137840365,-2712.8,0.00010958,2]
[352491901,1739137840375,-500.0,0.00010958,2]
[352491903,1739137840386,-154.48,0.00010958,2]
[352491904,1739137840395,-500.0,0.00010958,2]
[352491906,1739137840406,-500.00000001,0.00010958,2]
[352491909,1739137840416,-500.0,0.00010958,2]
[352491910,1739137840426,-860.57,0.00010958,2]
[352491912,1739137840435,-500.0,0.00010958,2]
[352491914,1739137840445,-3861.99,0.00010958,2]
[352491916,1739137840454,-2341.03,0.00010958,2]
[352491918,1739137840463,-1171.53,0.00010958,2]
[352491920,1739137840474,-500.0,0.00010958,2]
[352491922,1739137840483,-500.0,0.00010958,2]
[352491924,1739137840493,-883.39,0.00010958,2]
[352491926,1739137840502,-257.9,0.00010958,2]
[352491928,1739137840518,-3532.66,0.00010958,2]
[352491930,1739137840528,-895.17,0.00010958,2]
[352491932,1739137840538,-500.0,0.00010958,2]
[352491933,1739137840548,-1134.68460627,0.00010958,2]
[352491936,1739137840569,-319.29745498,0.00010958,2]
[352491939,1739137840595,-3101.55793875,0.00010958,2]
[352491940,1739137840606,-500.0,0.00010958,2]
[352491942,1739137840616,-1716.4,0.00010958,2]
[352491944,1739137840628,-500.0,0.00010958,2]
[352491946,1739137840637,-500.0,0.00010958,2]
[352491948,1739137840648,-500.0,0.00010958,2]
[352491950,1739137840658,-500.0,0.00010958,2]
[352491951,1739137840667,-500.0,0.00010958,2]
[352491953,1739137840677,-500.0,0.00010958,2]
[352491955,1739137840688,-500.0,0.00010958,2]
[352491957,1739137840699,-500.0,0.00010958,2]
[352491959,1739137840708,-621.42237125,0.00010958,2]
[352492022,1739137841350,-3726.97752594,0.00010958,2]
[352492024,1739137841365,-3753.24749476,0.00010958,2]
[352492027,1739137841380,-456.190222,0.00010958,2]
[352492029,1739137841391,-494.56258049,0.00010958,2]
[352492127,1739137842351,-13671.90980556,0.00010958,2]
[352492129,1739137842360,-134.45450544,0.00010958,2]
[352492132,1739137842383,-365.54549456,0.00010958,2]
[352492134,1739137842393,-388.5740431,0.00010958,2]
[352492136,1739137842403,-500.0,0.00010958,2]
[352492138,1739137842413,-500.0,0.00010958,2]
[352492140,1739137842423,-260.65027256,0.00010958,2]
[352492142,1739137842433,-584.12,0.00010958,2]
[352492144,1739137842442,-500.0,0.00010958,2]
[352492146,1739137842452,-2591.58,0.00010958,2]
[352492148,1739137842461,-500.0,0.00010958,2]
[352492150,1739137842471,-512.6,0.00010958,2]
[352492152,1739137842481,-1831.71,0.00010958,2]
[352492154,1739137842490,-500.0,0.00010958,2]
[352492156,1739137842500,-500.0,0.00010958,2]
[352492158,1739137842511,-1387.72,0.00010958,2]
[352492161,1739137842521,-500.0,0.00010958,2]
[352492164,1739137842531,-4876.14,0.00010958,2]
[352492168,1739137842540,-500.0,0.00010958,2]
[352492172,1739137842550,-500.0,0.00010958,2]
[352492176,1739137842560,-500.0,0.00010958,2]
[352492179,1739137842569,-500.0,0.00010958,2]
[352492182,1739137842579,-500.0,0.00010958,2]
[352492185,1739137842591,-500.0,0.00010958,2]
[352492188,1739137842601,-1527.52,0.00010958,2]
[352492191,1739137842611,-500.0,0.00010958,2]
[352492194,1739137842621,-500.0,0.00010958,2]
[352492197,1739137842631,-500.0,0.00010958,2]
[352492199,1739137842640,-500.0,0.00010958,2]
[352492202,1739137842649,-500.0,0.00010958,2]
[352492204,1739137842659,-1081.99,0.00010958,2]
[352492206,1739137842668,-500.0,0.00010958,2]
[352492208,1739137842678,-153.0,0.00011094,2]
[352492210,1739137842688,-954.01,0.00011095,2]
[352492212,1739137842698,-151.0,0.00011095,2]
[352492214,1739137842707,-500.0,0.00011095,2]
[352492216,1739137842717,-500.0,0.00011095,2]
[352492218,1739137842727,-2180.19,0.00011095,2]
[352492220,1739137842737,-500.0,0.00011095,2]
[352492222,1739137842746,-500.0,0.00011095,2]
[352492224,1739137842756,-500.0,0.00011095,2]
[352492226,1739137842770,-842.26,0.00011095,2]
[352492228,1739137842779,-500.0,0.00011095,2]
[352492230,1739137842789,-500.0,0.00011095,2]
[352492232,1739137842798,-500.0,0.00011095,2]
[352492234,1739137842808,-883.86,0.00011095,2]
[352492236,1739137842817,-500.0,0.00011095,2]
[352492238,1739137842827,-500.0,0.00011095,2]
[352492240,1739137842836,-500.0,0.00011095,2]
[352492241,1739137842845,-500.0,0.00011095,2]
[352492242,1739137842855,-43935.02,0.00011095,2]
[352492243,1739137842864,-500.0,0.00011095,2]
[352492244,1739137842873,-2712.8,0.00011095,2]
[352492245,1739137842882,-500.0,0.00011095,2]
[352492246,1739137842892,-500.0,0.00011095,2]
[352492247,1739137842903,-500.0,0.00011095,2]
[352492248,1739137842912,-860.57,0.00011095,2]
[352492249,1739137842922,-500.0,0.00011095,2]
[352492250,1739137842931,-3861.99,0.00011095,2]
[352492252,1739137842941,-2341.03,0.00011095,2]
[352492254,1739137842950,-1171.53,0.00011095,2]
[352492255,1739137842959,-500.0,0.00011095,2]
[352492257,1739137842969,-883.39,0.00011095,2]
[352492259,1739137842979,-3532.66,0.00011095,2]
[352492260,1739137842989,-895.17,0.00011095,2]
[352492262,1739137842998,-500.0,0.00011095,2]
[352492264,1739137843010,-4555.54,0.00011095,2]
[352492265,1739137843019,-500.0,0.00011095,2]
[352492267,1739137843028,-1716.4,0.00011095,2]
[352492268,1739137843037,-476.6664275,0.00011095,2]
[352492269,1739137843046,-500.0,0.00011095,2]
[352492271,1739137843056,-500.0,0.00011095,2]
[352492273,1739137843065,-500.0,0.00011095,2]
[352492275,1739137843075,-500.0,0.00011095,2]
[352492278,1739137843086,-500.0,0.00011095,2]
[352492281,1739137843095,-500.0,0.00011095,2]
[352492284,1739137843105,-500.0,0.00011095,2]
[352492285,1739137843114,-22724.31,0.00011095,2]
[352492288,1739137843128,-500.0,0.00011095,2]
[352492290,1739137843137,-500.0,0.00011095,2]
[352492292,1739137843147,-500.0,0.00011095,2]
[352492294,1739137843156,-584.12,0.00011095,2]
[352492297,1739137843165,-500.0,0.00011095,2]
[352492300,1739137843176,-2591.58,0.00011095,2]
[352492303,1739137843186,-500.0,0.00011095,2]
[352492305,1739137843196,-512.6,0.00011095,2]
[352492307,1739137843205,-1831.71,0.00011095,2]
[352492310,1739137843215,-500.0,0.00011095,2]
[352492313,1739137843225,-1387.72,0.00011095,2]
[352492316,1739137843235,-500.0,0.00011095,2]
[352492317,1739137843244,-4876.14,0.00011095,2]
[352492319,1739137843255,-304.4,0.00011095,2]
[352492322,1739137843268,-500.0,0.00011095,2]
[352492326,1739137843278,-500.0,0.00011095,2]
[352492329,1739137843288,-500.0,0.00011095,2]
[352492332,1739137843297,-500.0,0.00011095,2]
[352492335,1739137843307,-500.0,0.00011095,2]
[352492338,1739137843316,-1527.52,0.00011095,2]
[352492340,1739137843326,-500.0,0.00011095,2]
[352492342,1739137843335,-500.0,0.00011095,2]
[352492343,1739137843345,-500.0,0.00011095,2]
[352492345,1739137843355,-500.0,0.00011095,2]
[352492347,1739137843364,-500.0,0.00011095,2]
[352492350,1739137843375,-1081.99,0.00011095,2]
[352492352,1739137843385,-500.0,0.00011095,2]
[352492354,1739137843394,-954.01,0.00011232,2]
[352492356,1739137843405,-500.0,0.00011232,2]
[352492357,1739137843415,-302.77054433,0.00011232,2]
[352492358,1739137843425,-2180.19,0.00011232,2]
[352492359,1739137843434,-500.0,0.00011232,2]
[352492362,1739137843444,-500.0,0.00011232,2]
[352492365,1739137843454,-500.0,0.00011232,2]
[352492368,1739137843463,-842.26,0.00011232,2]
[352492371,1739137843473,-500.0,0.00011232,2]
[352492374,1739137843483,-500.0,0.00011232,2]
[352492377,1739137843493,-500.0,0.00011232,2]
[352492380,1739137843503,-500.0,0.00011232,2]
[352492383,1739137843515,-883.86,0.00011232,2]
[352492386,1739137843526,-500.0,0.00011232,2]
[352492389,1739137843536,-500.0,0.00011232,2]
[352492392,1739137843546,-500.0,0.00011232,2]
[352492395,1739137843556,-43935.02,0.00011232,2]
[352492399,1739137843566,-500.0,0.00011232,2]
[352492402,1739137843576,-2712.8,0.00011232,2]
[352492405,1739137843586,-500.0,0.00011232,2]
[352492408,1739137843596,-500.0,0.00011232,2]